Cogmind - Beta 15 @@@ ROGUE MODE // 2025.05.22 @ 17:04:19 Player: amhumam Result: Self-destructed Performance ------------- Evolutions (5) 2500 Regions Visited (9) 1800 Robots Destroyed (81) 405 Value Destroyed (3738) 3738 Prototype IDs (1) 20 Alien Tech Used (0) 0 Bonus (1221) 1221 TOTAL SCORE: 9684 Bonus ------- High Alert Combat Kills 90 Follower Combat Kills 431 Entered Garrisons 200 Used RIF Installer 500 Cogmind --------- Core Integrity 528/1000 Matter 135/300 Energy 99/100 System Corruption 8% Temperature Cool (0) Movement Core (50) Location -5/Factory Parts ------- > --- POWER (1) -------- (None) > --- PROPULSION (5) --- (None) > --- UTILITY (8) ------ Machine Analyzer Improved Signal Interpreter Targeting Computer System Shield Relay Coupler [NC] (13) > --- WEAPON (3) ------- Axe > --- INVENTORY (5) ---- Improved Heat Sink Improved Heat Sink Relay Coupler [NC] (44) Cooled Plasma Cannon Fusion Bomb Launcher Peak State ------------ > --- POWER ------------ Neutrino Core > --- PROPULSION ------- Flexi-carbon Leg Flexi-carbon Leg Biometal Leg > --- UTILITY ---------- Improved Heat Sink Large Storage Unit Machine Analyzer Improved Sensor Array Improved Signal Interpreter Targeting Computer System Shield Relay Coupler [NC] > --- WEAPON ----------- Cooled Plasma Cannon Flak Cannon Remote Datajack > --- INVENTORY -------- Light Fission Core Improved Heat Sink Relay Coupler [NC] Relay Coupler [NC] Relay Coupler [Sentry] Relay Coupler [Sentry] Relay Coupler [Heavy] Cooled Plasma Cannon Cooled Plasma Cannon Cooled Plasma Cannon Advanced Plasma Cannon Fusion Bomb Launcher Fusion Bomb Launcher Remote Datajack Axe [Rating: 62] Favorites ----------- Power Light Nuclear Core Engine Light Ion Engine Power Core Light Nuclear Core Propulsion Aluminum Leg Treads Light Treads Leg Aluminum Leg Flight Unit Flight Unit Utility Improved Heat Sink Device Improved Heat Sink Storage Large Storage Unit Processor Improved Signal Interpreter Hackware System Shield Protection Improved Medium Armor Plating Weapon High-powered Shotgun Energy Gun Pulse Rifle Energy Cannon Beam Cannon Ballistic Gun High-powered Shotgun Ballistic Cannon Flak Cannon Launcher Rocket Launcher Special Weapon Remote Datajack Slashing Weapon Axe Special Melee Weapon Improved Datajack Build | -11 -10 -10 -9 -8 -7 -6 -6 -6 -5 ------- Run | Yrd Mat Min Mat Mat Fac Fac Gar Fac Fac Slots Evolved 10 | . . . 2 2 2 2 . . 2 Power . | . . . . . . . . . . Propulsion 3 | . . . 2 . . . . . 1 Utility 6 | . . . . 2 2 1 . . 1 Weapon 1 | . . . . . . 1 . . . Parts Attached 74 | 6 2 3 5 16 14 5 8 3 12 Power 8 | 1 . 1 . 2 1 1 1 . 1 Engine 2 | 1 . 1 . . . . . . . Core 6 | . . . . 2 1 1 1 . 1 Reactor . | . . . . . . . . . . Propulsion 24 | 2 . 2 2 7 2 3 3 1 2 Treads 3 | 2 . . . 1 . . . . . Leg 19 | . . 2 . 6 2 3 3 1 2 Wheel . | . . . . . . . . . . Hover . | . . . . . . . . . . Flight 2 | . . . 2 . . . . . . Utility 21 | 1 1 . . 2 7 1 3 2 4 Device 7 | . . . . . 4 1 1 . 1 Storage 2 | 1 . . . 1 . . . . . Processor 5 | . 1 . . . 1 . 1 2 . Hackware 5 | . . . . . 1 . 1 . 3 Protection 2 | . . . . 1 1 . . . . Artifact . | . . . . . . . . . . Weapon 21 | 2 1 . 3 5 4 . 1 . 5 Energy Gun 2 | 1 . . 1 . . . . . . Energy Cannon 4 | . 1 . . . 1 . . . 2 Ballistic Gun 5 | 1 . . 1 2 . . . . 1 Ballistic Cannon 2 | . . . . . 1 . . . 1 Launcher 3 | . . . 1 1 1 . . . . Special Weapon 2 | . . . . . . . 1 . 1 Impact Weapon . | . . . . . . . . . . Slashing Weapon 2 | . . . . 2 . . . . . Piercing Weapon . | . . . . . . . . . . Special Melee Weapon 1 | . . . . . 1 . . . . Unidentified Prototypes . | . . . . . . . . . . Parts Lost 39 | . . . 1 8 9 5 . 3 13 Power 4 | . . . . 1 2 . . . 1 Propulsion 19 | . . . . 6 3 3 . 1 6 Utility 4 | . . . . . 1 1 . 1 1 Weapon 12 | . . . 1 1 3 1 . 1 5 Highest Loss Streak 8 | . . . 1 4 3 4 . 3 8 To Critical Strikes . | . . . . . . . . . . Average Backups 12 | 1 4 8 8 11 14 13 14 15 14 Power . | . 1 . . . . . 1 1 1 Propulsion . | . . . . . 2 1 . 1 . Utility 3 | . . . . 1 3 4 6 7 6 Weapon 6 | . 2 7 8 8 7 5 5 5 6 Tool/Special . | . . . . . . . . . . Unused Backups 24 | . 1 . 3 3 3 . 6 . 8 Power 2 | . 1 . . . . . . . 1 Propulsion 3 | . . . . . 3 . . . . Utility 8 | . . . . 1 . . 5 . 2 Weapon 11 | . . . 3 2 . . 1 . 5 Tool/Special . | . . . . . . . . . . Average Slot Usage (%) 91 | . 94 99 80 89 95 90 95 95 84 Engine 2 | . 14 14 11 . . . . . . Core 4 | . . . . 4 6 5 6 6 4 Treads 1 | . 28 4 . . . . . . . Leg 23 | . . 23 22 31 27 25 24 25 17 Device 8 | . . . . . 13 19 16 10 8 Storage 8 | . 14 14 11 14 7 6 6 6 4 Processor 10 | . 8 14 11 9 5 6 12 14 17 Hackware 5 | . . . . . 6 6 6 13 12 Protection 2 | . . . . 6 8 . . . . Energy Gun 2 | . 5 . 2 7 2 . . . . Energy Cannon 3 | . 8 14 7 . 3 . . . 4 Ballistic Gun 5 | . 14 14 11 6 1 3 6 2 . Ballistic Cannon 1 | . . . . . 3 5 1 . 4 Special Weapon 1 | . . . . . . . 4 6 2 Slashing Weapon 2 | . . . . 2 1 4 6 6 . Peak Build Rating 62 | 6 9 9 16 24 38 42 59 57 62 Average Rating 34 | 4 7 8 10 20 33 40 50 54 58 On Entrance 23 | . 6 9 9 16 23 26 36 57 54 Naked Turns . | . . . . . . . . . . Heaviest Build 53 | 11 13 13 15 39 47 44 39 38 53 Greatest Support 83 | 40 40 40 20 45 50 55 83 83 83 Greatest Overweight (x) 4 | . . 1 4 1 2 . . . . Average Overweight (x) . | . . . . . . . . . . Largest Inventory Capacity 15 | 8 8 8 8 15 15 15 15 15 15 Average Capacity 13 | 6 8 8 8 12 15 15 15 15 14 Most Carried 15 | 2 8 8 8 15 15 15 15 15 15 Average Carried 12 | 1 4 7 7 11 14 13 14 15 14 Final Capacity 15 | 8 8 8 8 15 15 15 15 15 5 Final Carried 15 | 2 8 8 8 15 15 13 15 15 5 Class Distribution -------------------- 33% | Scavenger-Mutant 33% | Mutant 19% | Bothacker-Mutant 11% | Bothacker-Skirmisher Dominant Class ---------------- Mutant | -10/Materials Mutant | -10/Mines Mutant | -9/Materials Scavenger-Mutant | -8/Materials Scavenger-Mutant | -7/Factory Mutant | -6/Factory Bothacker-Mutant | -6/Garrison Bothacker-Mutant | -6/Factory Bothacker-Skirmisher | -5/Factory Resources | -11 -10 -10 -9 -8 -7 -6 -6 -6 -5 ----------- Run | Yrd Mat Min Mat Mat Fac Fac Gar Fac Fac Matter Collected 1727 | 159 76 102 168 347 203 148 80 258 186 Remotely . | . . . . . . . . . . Salvage Created 2566 | . 105 102 242 772 760 31 80 106 368 Parts 149 | . 8 3 27 38 45 1 . 6 21 Haulers Intercepted 6 | . . . 1 3 2 . . . . Recyclers Shooed 1 | . . . . . . . . . 1 Parts Field Recycled . | . . . . . . . . . . Retrieved Matter . | . . . . . . . . . . Parts Self-Destructed . | . . . . . . . . . . Prevented . | . . . . . . . . . . Kills | -11 -10 -10 -9 -8 -7 -6 -6 -6 -5 ------- Run | Yrd Mat Min Mat Mat Fac Fac Gar Fac Fac Combat Hostiles Destroyed 62 | . 4 2 9 16 22 1 . 2 6 Melee 7 | . . . . 5 1 . . 1 . Guns 14 | . 2 . 4 8 . . . . . Cannons 18 | . 2 2 . . 7 1 . . 6 AOE 23 | . . . 5 3 14 . . 1 . Classes Destroyed 15 | . 3 . 6 1 5 . . . . Worker 5 | . . . 1 2 1 . . . 1 Builder 2 | . . . 1 . . . . . 1 Tunneler 1 | . . . 1 . . . . . . Hauler 6 | . . . 1 3 2 . . . . Recycler 2 | . . . . . 1 . . . 1 Mechanic 2 | . . . . 1 1 . . . . Watcher 1 | . 1 . . . . . . . . Swarmer 9 | . 3 . 6 . . . . . . Grunt 34 | . 1 2 1 13 13 1 . 2 1 Brawler 1 | . . . 1 . . . . . . Protector 2 | . . . . . 2 . . . . Sentry 5 | . . . 1 3 . . . . 1 Specialist 2 | . . . . . 2 . . . . Hunter 3 | . . . . . 3 . . . . Programmer 6 | . . . . . 2 . . . 4 Best Kill Streak 11 | . 3 2 9 7 11 1 . 1 7 Combat Bots Only 10 | . 3 2 6 4 10 1 . 1 5 Max Kills in Single Turn 5 | . 1 1 4 3 5 1 . 1 2 Gunslinging . | . . . . . . . . . . Exploded 4 | . . . 3 1 4 . . 1 . Melee 2 | . . . . 2 1 . . 1 . Uniques/NPCs Destroyed . | . . . . . . . . . . Combat | -11 -10 -10 -9 -8 -7 -6 -6 -6 -5 -------- Run | Yrd Mat Min Mat Mat Fac Fac Gar Fac Fac Hostile Shots Fired 456 | . 21 13 32 96 122 35 . 20 117 Missed 151 | . 8 4 9 33 45 11 . 4 37 Hits 305 | . 13 9 23 63 77 24 . 16 80 Melee 3 | . . . . . . . . . 3 Projectile 302 | . 13 9 23 63 77 24 . 16 77 AOE 2 | . . . . . . . . 1 1 Critical Strikes 12 | . . . . 3 1 1 . . 7 Damage Taken 5526 | . 172 116 246 1029 1120 516 . 532 1795 Core 1058 | . 36 33 50 206 105 31 . 125 472 Absorbed by Shields . | . . . . . . . . . . Core Remaining (%) 81 | 100 . 72 87 62 85 . . 81 . Volleys Fired 161 | . 12 6 15 37 34 5 7 3 42 Largest 2 | . 2 2 2 2 2 2 1 1 2 Hottest 97 | . 80 80 88 96 97 62 5 5 72 Shots Fired 294 | . 24 12 29 72 64 10 7 3 73 Gun 117 | . 12 6 24 63 . 5 . . 7 Cannon 139 | . 12 6 2 . 53 5 . . 61 Launcher 23 | . . . 3 9 11 . . . . Special 15 | . . . . . . . 7 3 5 Kinetic 130 | . 12 6 15 26 23 10 . . 38 Thermal 126 | . 12 6 11 37 30 . . . 30 Explosive 23 | . . . 3 9 11 . . . . Electromagnetic . | . . . . . . . . . . Robot Hit Streak 15 | . 5 13 14 15 7 3 5 1 10 Robot Miss Streak 7 | . 2 . 6 5 6 7 1 2 7 Penetration Max . | . . . . . . . . . . Secondary Targets 1 | . . . 1 . . . . . . Max Gunslinging Chain 1 | . . . 1 . . . . . . Shots Hit Robots 232 | . 15 10 17 61 44 8 14 9 54 Core Hits 199 | . 6 3 18 40 66 11 3 3 49 Critical Kills . | . . . . . . . . . . Critical Parts Destroyed . | . . . . . . . . . . Critical Strikes 3 | . . . . 3 . . . . . Burn 2 | . . . . 2 . . . . . Sever 1 | . . . . 1 . . . . . Melee Attacks 62 | . . . . 15 7 5 22 13 . Impact . | . . . . . . . . . . Slashing 62 | . . . . 15 7 5 22 13 . Piercing . | . . . . . . . . . . Sneak Attacks 1 | . . . . . 1 . . . . Combat Hostiles 1 | . . . . . 1 . . . . Follow-up Attacks 2 | . . . . 2 . . . . . Damage Inflicted 9274 | . 233 159 557 1935 3787 235 723 281 1364 Guns 1477 | . 75 53 237 932 . 97 . . 83 Cannons 2472 | . 158 106 34 . 755 138 . . 1281 Explosions 3853 | . . . 286 670 2897 . . . . Melee 1472 | . . . . 333 135 . 723 281 . Ramming . | . . . . . . . . . . Kinetic 2068 | . 75 53 166 382 427 235 . . 730 Thermal 3089 | . 158 106 105 550 1536 . . . 634 Explosive 2645 | . . . 286 670 1689 . . . . Electromagnetic . | . . . . . . . . . . Impact . | . . . . . . . . . . Slashing 1472 | . . . . 333 135 . 723 281 . Piercing . | . . . . . . . . . . Highest Corruption 8 | . . . . . . . . . 8 Average Corruption 2 | . . . . . . . . . 2 Corruption Purged . | . . . . . . . . . . Corruption Blocked . | . . . . . . . . . . Effects 3 | . . . . . . . . . 3 Message Errors 1 | . . . . . . . . . 1 Matter Fused 2 | . . . . . . . . . 2 Overload Shots . | . . . . . . . . . . Overflow Damage 328 | . . . . 7 165 . 139 14 3 Projectiles 3 | . . . . . . . . . 3 Explosions 172 | . . . . 7 165 . . . . Melee 153 | . . . . . . . 139 14 . Knockbacks 32 | . . . . . 5 6 . . 21 Impact . | . . . . . . . . . . Kinetic 31 | . . . . . 5 6 . . 20 Secondary 1 | . . . . . . . . . 1 Self-Inflicted Damage . | . . . . . . . . . . Shots . | . . . . . . . . . . Rammed . | . . . . . . . . . . Targets Rammed . | . . . . . . . . . . Kicked . | . . . . . . . . . . Crushed . | . . . . . . . . . . Highest Temperature 234 | . 221 174 54 234 12 . . . 1 Average Temperature 58 | . 94 97 20 60 3 . . . 1 Received Heat Transfer 1368 | . 72 66 72 495 390 81 . 156 36 Siege Activations . | . . . . . . . . . . Martial Activations . | . . . . . . . . . . Shielding Activations . | . . . . . . . . . . Robots Disrupted . | . . . . . . . . . . Combat Hostiles . | . . . . . . . . . . Robots Corrupted . | . . . . . . . . . . Combat Hostiles . | . . . . . . . . . . Parts Fried . | . . . . . . . . . . Impact Corruptions . | . . . . . . . . . . Robots Melted . | . . . . . . . . . . Combat Hostiles . | . . . . . . . . . . Parts Melted 5 | . 3 . . 1 . . . . 1 Heat Transferred 4327 | . 333 222 222 1332 1318 . . . 900 Parts Sabotaged . | . . . . . . . . . . Parts Stolen . | . . . . . . . . . . Parts Stripped . | . . . . . . . . . . Power Chain Reactions . | . . . . . . . . . . Alert | -11 -10 -10 -9 -8 -7 -6 -6 -6 -5 ------- Run | Yrd Mat Min Mat Mat Fac Fac Gar Fac Fac Maximum Alert Level 3 | . . . 1 1 3 1 3 2 1 Low Security (%) 43 | 100 100 100 91 11 68 . 2 . 63 Level 1 40 | . . . 8 88 30 100 31 65 36 Level 2 13 | . . . . . . . 57 34 . Level 3 1 | . . . . . . . 7 . . Level 4 . | . . . . . . . . . . Level 5 . | . . . . . . . . . . High Security . | . . . . . . . . . . Max Security . | . . . . . . . . . . Peak Influence 703 | . 105 78 257 317 702 343 703 474 381 Initial 368 | . . 28 5 100 121 343 184 368 205 Average 225 | . 36 36 33 258 127 312 451 382 187 Influence Increases 3543 | . 155 106 333 590 942 90 519 311 497 Destroy 0b10 Robot/C 1480 | . 80 80 220 320 400 20 . 120 240 Destroy 0b10 Robot/NC 135 | . 5 . 30 30 35 . . 5 30 Destroy Leader 342 | . 22 20 44 76 82 10 . 32 56 Allied During Kill 124 | . . 6 21 . . . . 64 33 Successful Hack 85 | . 18 . 4 12 . . 14 11 26 Select Force Hacks 30 | . . . . . 30 . . . . Disable Machine 330 | . . . . 15 180 60 . 15 60 Anti-Garrison Action 600 | . . . . . 150 . 450 . . Destroy Structure 222 | . . . 14 47 50 . 55 4 52 Partial Spotted 15 | . 15 . . . . . . . . Lose Combat Pursuer 180 | . 15 . . 90 15 . . 60 . Influence Decreases 3461 | . 80 165 112 559 508 529 79 595 834 Entered New Map 1329 | . . 47 11 137 147 359 79 335 214 Time Decay 1494 | . 80 110 81 342 301 120 . 150 310 Lost Part 350 | . . . . 80 60 50 . 30 130 Lost Ally 138 | . . 8 20 . . . . 80 30 Purge Threat 150 | . . . . . . . . . 150 Squads Dispatched 29 | . . . 1 6 11 2 . 4 5 Investigation 3 | . . . . . 2 . . 1 . Extermination 4 | . . . . . 2 . . . 2 Reinforcement 13 | . . . 1 3 4 1 . 1 3 Assault 6 | . . . . 2 2 . . 2 . Garrison 3 | . . . . 1 1 1 . . . Intercept . | . . . . . . . . . . Searches Triggered . | . . . . . . . . . . Construction Impeded 2 | . . . . . 1 . . . 1 Haulers Reinforced 1 | . . . . . . . . . 1 Active Scanning Responses . | . . . . . . . . . . Cargo Convoy Interrupts 1 | . . . . . 1 . . . . Stealth | -11 -10 -10 -9 -8 -7 -6 -6 -6 -5 --------- Run | Yrd Mat Min Mat Mat Fac Fac Gar Fac Fac Distress Signals 8 | . . . 1 4 1 . . . 2 Communications Jammed . | . . . . . . . . . . Distress Signals . | . . . . . . . . . . Times Spotted 119 | . 5 3 18 22 28 10 . 13 20 Peak Tracking Total 9 | . 5 2 7 4 9 7 . 5 4 Tactical Retreats 8 | . 1 . . 4 1 . . 2 . Traps | -11 -10 -10 -9 -8 -7 -6 -6 -6 -5 ------- Run | Yrd Mat Min Mat Mat Fac Fac Gar Fac Fac Traps Triggered 7 | . . . . 1 2 1 2 1 . Indirectly . | . . . . . . . . . . Trap Hack Attempts 8 | . . . . . 8 . . . . Triggered . | . . . . . . . . . . Disarmed . | . . . . . . . . . . Reprogrammed 1 | . . . . . 1 . . . . Reused . | . . . . . . . . . . Traps Extracted . | . . . . . . . . . . Installed . | . . . . . . . . . . Triggered . | . . . . . . . . . . Machines | -11 -10 -10 -9 -8 -7 -6 -6 -6 -5 ---------- Run | Yrd Mat Min Mat Mat Fac Fac Gar Fac Fac Machines Disabled 26 | . . . . 1 13 4 3 1 4 Max in Single Turn 10 | . . . . 1 10 1 1 1 . Garrison Access 3 | . . . . 1 1 . . 1 . Garrison Relay 3 | . . . . . . . 3 . . Machines Repaired . | . . . . . . . . . . Machines Dismantled . | . . . . . . . . . . Machines Sabotaged . | . . . . . . . . . . Overloaded Fab Kills . | . . . . . . . . . . Hacking | -11 -10 -10 -9 -8 -7 -6 -6 -6 -5 --------- Run | Yrd Mat Min Mat Mat Fac Fac Gar Fac Fac Machines Accessed 21 | . 3 . 2 4 3 1 2 1 5 Terminals 18 | . 3 . 2 4 1 . 2 1 5 Fabricators . | . . . . . . . . . . Repair Stations . | . . . . . . . . . . Recycling Units 2 | . . . . . 2 . . . . Scanalyzers . | . . . . . . . . . . Garrison Access 1 | . . . . . . 1 . . . Total Hacks 53 | . 9 . 3 8 6 1 3 7 16 Successful 23 | . 2 . 2 3 2 1 1 4 8 Failed 30 | . 7 . 1 5 4 . 2 3 8 Catastrophic 6 | . . . . 1 1 . . 2 2 Database Lockouts . | . . . . . . . . . . Manual 48 | . 11 . 4 8 6 . . 5 14 Terminals 48 | . 9 . 3 8 2 . 3 7 16 Fabricators . | . . . . . . . . . . Repair Stations . | . . . . . . . . . . Recycling Units 4 | . . . . . 4 . . . . Scanalyzers . | . . . . . . . . . . Garrison Access 1 | . . . . . . 1 . . . Terminal Hacks 8 | . . . . 1 . . 1 2 4 Branch Access Points 3 | . . . . 1 . . . 1 1 Emergency Access Points 1 | . . . . . . . 1 . . Terminal Index 1 | . . . . . . . . 1 . Unreport Threat 1 | . . . . . . . . . 1 Locate Traps 1 | . . . . . . . . . 1 Zone Layout 1 | . . . . . . . . . 1 Fabricator Hacks . | . . . . . . . . . . Repair Station Hacks . | . . . . . . . . . . Recycling Unit Hacks . | . . . . . . . . . . Scanalyzer . | . . . . . . . . . . Garrison Access Hacks 1 | . . . . . . 1 . . . Unlock Access 1 | . . . . . . 1 . . . Unauthorized Hacks 14 | . 2 . 2 2 2 . . 2 4 Terminals 13 | . 2 . 2 2 1 . . 2 4 Assimilate 1 | . . . . . . . . . 1 Botnet 11 | . 2 . 2 2 1 . . 1 3 Operators 1 | . . . . . . . . 1 . Fabricators . | . . . . . . . . . . Repair Stations . | . . . . . . . . . . Recycling Units 1 | . . . . . 1 . . . . Tunnel 1 | . . . . . 1 . . . . Scanalyzers . | . . . . . . . . . . Garrison Access . | . . . . . . . . . . Data Cores Recovered . | . . . . . . . . . . Used . | . . . . . . . . . . Hacking Detections 17 | . 3 . 2 4 2 . 1 1 4 Full Trace Events . | . . . . . . . . . . Feedback Events . | . . . . . . . . . . Feedback Blocked . | . . . . . . . . . . Robot Schematics Acquired . | . . . . . . . . . . Robots Built . | . . . . . . . . . . Authchips . | . . . . . . . . . . Time . | . . . . . . . . . . Total Robot Build Rating . | . . . . . . . . . . Part Schematics Acquired . | . . . . . . . . . . Parts Built . | . . . . . . . . . . Authchips . | . . . . . . . . . . Time . | . . . . . . . . . . Total Part Build Rating . | . . . . . . . . . . Parts Repaired . | . . . . . . . . . . Time . | . . . . . . . . . . Parts Recycled . | . . . . . . . . . . Recycled Matter . | . . . . . . . . . . Retrieved Matter . | . . . . . . . . . . Retrieved Components . | . . . . . . . . . . Parts Scanalyzed . | . . . . . . . . . . Part Schematics Acquired . | . . . . . . . . . . Parts Damaged . | . . . . . . . . . . Bothacking | -11 -10 -10 -9 -8 -7 -6 -6 -6 -5 ------------ Run | Yrd Mat Min Mat Mat Fac Fac Gar Fac Fac Used RIF Installer 1 | . . . . . . . 1 . . Robots Hacked 5 | . . . . . . . 1 . 4 Non-combat 4 | . . . . . . . 1 . 3 Combat 1 | . . . . . . . . . 1 Robot Hacks Applied 6 | . . . . . . . 1 . 5 drop_inventory 2 | . . . . . . . . . 2 recall_reinforcements 1 | . . . . . . . . . 1 formatsys_low 2 | . . . . . . . 1 . 1 formatsys_high 1 | . . . . . . . . . 1 Relay Couplers Released 20 | . . . . 3 3 . 11 3 . Machine Destruction 20 | . . . . 3 3 . 11 3 . Attached 4 | . . . . . . . 1 . 3 Fabnet Peak Effective % . | . . . . . . . . . . Robots Rewired 4 | . . . . . . . 4 . . Allies Hacked . | . . . . . . . . . . Hacks Repelled . | . . . . . . . . . . Allies | -11 -10 -10 -9 -8 -7 -6 -6 -6 -5 -------- Run | Yrd Mat Min Mat Mat Fac Fac Gar Fac Fac Total Allies 13 | . . 3 . . . . 7 . 3 Largest Group 7 | . . 3 2 . . . 7 7 3 Highest-Rated Group 270 | . . 40 32 . . . 270 270 165 Highest-Rated Ally 80 | . . 16 16 . . . 80 80 80 Total Orders . | . . . . . . . . . . Ally Attacks 93 | . . 11 28 . . . . 34 20 Total Damage 2616 | . . 122 199 . . . . 1110 1185 Kills 23 | . . 2 4 . . . . 5 12 Allies Corrupted 2 | . . . 1 . . . . . 1 Allies Melted . | . . . . . . . . . . Intel | -11 -10 -10 -9 -8 -7 -6 -6 -6 -5 ------- Run | Yrd Mat Min Mat Mat Fac Fac Gar Fac Fac Active Infowar (turns) 4330 | . 147 228 536 774 756 240 654 307 688 Optics 1746 | . 147 228 536 774 61 . . . . Sensors 2357 | . . . . . 695 240 654 210 558 Machine Analysis 871 | . . . . . . . . 183 688 Robot Analysis Total . | . . . . . . . . . . Derelict Logs Recovered 1 | . . 1 . . . . . . . Drone Launches . | . . . . . . . . . . Drone Recoveries . | . . . . . . . . . . Exploration | -11 -10 -10 -9 -8 -7 -6 -6 -6 -5 ------------- Run | Yrd Mat Min Mat Mat Fac Fac Gar Fac Fac Turns Passed 5011 | 66 239 228 536 774 917 252 1004 307 688 Spaces Moved 2916 | 38 117 168 134 430 498 168 717 216 430 Core 11 | 4 . . 2 . . . . . 5 Treads 155 | 34 117 3 . 1 . . . . . Legs 2750 | . . 165 132 429 498 168 717 216 425 Wheels . | . . . . . . . . . . Hover . | . . . . . . . . . . Flight . | . . . . . . . . . . Fastest Speed 50 | 50 160 120 120 120 120 120 120 120 50 Average Speed 126 | 148 160 121 121 123 148 120 120 120 115 Slowest Speed 260 | 160 160 190 250 240 260 120 120 120 120 Overloaded Moves . | . . . . . . . . . . Propulsion Burnouts . | . . . . . . . . . . Robots Hopped . | . . . . . . . . . . Potential Cave-ins . | . . . . . . . . . . Cave-ins Triggered . | . . . . . . . . . . Exploration Rate (%) 28 | 4 24 39 20 56 18 6 89 7 17 Regions Visited 9 Branch Regions 1 Pre-discovered Areas 1 | . . . . . 1 . . . . Known Exits Taken 4 | . . . 1 . 1 1 . 1 . Unknown Exits Taken 4 | 1 1 1 . 1 . . . . . Scrap Searched . | . . . . . . . . . . Spaces Dug 11 | . . . . . 3 . . 3 5 Terrain Destroyed 135 | . . . 16 54 52 . . 3 10 Melee 6 | . . . . . 3 . . 3 . Projectile 11 | . . . . . 1 . . . 10 AOE 118 | . . . 16 54 48 . . . . Terrain Rammed . | . . . . . . . . . . Walls Destroyed . | . . . . . . . . . . Machines Disabled . | . . . . . . . . . . Actions | -11 -10 -10 -9 -8 -7 -6 -6 -6 -5 --------- Run | Yrd Mat Min Mat Mat Fac Fac Gar Fac Fac Total 3827 | 45 145 180 476 582 592 198 824 238 547 Wait 477 | . 4 . 315 63 12 5 23 3 52 Move 2906 | 37 116 167 133 429 497 167 715 215 430 Hop . | . . . . . . . . . . Pick Up 57 | 2 8 1 3 14 6 6 12 . 5 Fast Attach 40 | 6 2 2 4 9 7 . 5 3 2 Attach 21 | . . . . 2 4 8 . . 7 Detach . | . . . . . . . . . . Swap 32 | . . 1 2 8 10 2 3 . 6 Drop 41 | . 3 3 4 7 7 . 13 1 3 Fire 161 | . 12 6 15 37 34 5 7 3 42 Melee 60 | . . . . 13 7 5 22 13 . Ram . | . . . . . . . . . . Kick . | . . . . . . . . . . Crush . | . . . . . . . . . . Escape Stasis . | . . . . . . . . . . Rewire 24 | . . . . . . . 24 . . Trap 8 | . . . . . 8 . . . . Miscellaneous . | . . . . . . . . . . Route ------- -11/Scrapyard -10/Materials -10/Mines (discovered 2 exits: *Mat / [*Exi]) -9/Materials (discovered 3 exits: *Mat x3) -8/Materials -7/Factory -6/Factory -6/Garrison (discovered 3 exits: *Fac x3) -6/Factory (discovered 3 exits: *Fac / Low x2) -5/Factory (discovered 3 exits: *Fac / Upp x2) History --------- Turn | Location | Event 8 | -11/Scrapyard | Discovered new exit (range 15) 67 | -11/Scrapyard | Entered Materials 286 | -10/Materials | Discovered new exit (range 6) 306 | -10/Materials | Entered Mines 322 | -10/Mines | Build established: Mutant 375 | -10/Mines | Assisted by bots powering up and referring to "LRC-V3" 427 | -10/Mines | Learned 8 Materials zone layouts 438 | -10/Mines | A weapon hastily lodged in a ceiling crevice suddenly fell to the ground 483 | -10/Mines | Discovered new exit (range 5) 494 | -10/Mines | Deemed a non-threat by the Exiles lab entrance 494 | -10/Mines | Discovered new exit (range 5) 534 | -10/Mines | Entered Materials 534 | -9/Materials | Accompanied by 2 allies 534 | -9/Materials | Evolved 2 slots: Propulsion x2 535 | -9/Materials | Identified exit to Materials 1010 | -9/Materials | Discovered exit to Materials (range 17) 1070 | -9/Materials | Entered another Materials area 1070 | -8/Materials | Evolved 2 slots: Utility x2 1107 | -8/Materials | Garrison activated, responded to threat 1200 | -8/Materials | Lost 4 parts (1p3n) 1274 | -8/Materials | Build established: Scavenger-Mutant 1450 | -8/Materials | Discovered new exit (range 7) 1800 | -8/Materials | Met 7R-MNS 1844 | -8/Materials | Entered Factory 1844 | -7/Factory | Evolved 2 slots: Utility x2 1845 | -7/Factory | Caught up to 7R-MNS 2180 | -7/Factory | Lost 3 parts (1p2w) 2524 | -7/Factory | Destroyed 7 combat bots 2735 | -7/Factory | Discovered new exit (range 7) 2748 | -7/Factory | Cargo convoy interrupted 2748 | -7/Factory | Garrison activated, responded to threat 2759 | -7/Factory | Identified exit to Factory 2761 | -7/Factory | Entered another Factory area 2761 | -6/Factory | Evolved 2 slots: Utility x1, Weapon x1 2762 | -6/Factory | Caught up to 7R-MNS 2777 | -6/Factory | Destroyed 10 combat bots 2783 | -6/Factory | Lost 3 parts (1p1u1w) 2980 | -6/Factory | Identified exit to Garrison 3000 | -6/Factory | Garrison activated, responded to threat 3013 | -6/Factory | Entered Garrison 3013 | -6/Garrison | Discovered recently destroyed garrison 3032 | -6/Garrison | Lost 4 parts (3n1u) 3055 | -6/Garrison | Installed Relay Interface Framework 3093 | -6/Garrison | Build established: Mutant 3106 | -6/Garrison | Garrison Relay disabled 3260 | -6/Garrison | Discovered new exit (range 15) 3295 | -6/Garrison | Identified exit to Factory 3358 | -6/Garrison | Garrison Relay disabled 3531 | -6/Garrison | Found Fusion Bomb Launcher 3542 | -6/Garrison | Found Fusion Bomb Launcher 3584 | -6/Garrison | Discovered exit to Factory (range 8) 3586 | -6/Garrison | Found embedded Infiltrators 3665 | -6/Garrison | Build established: Bothacker-Mutant 3765 | -6/Garrison | Discovered exit to Factory (range 12) 3802 | -6/Garrison | Garrison Relay disabled 4017 | -6/Garrison | Entered Factory 4017 | -6/Factory | Accompanied by 7 allies 4059 | -6/Factory | Identified exit to Lower Caves 4169 | -6/Factory | Lost 3 parts (1n1u1w) 4171 | -6/Factory | Discovered new exit (range 12) 4282 | -6/Factory | Identified exit to Factory 4324 | -6/Factory | Entered another Factory area 4324 | -5/Factory | Accompanied by 2 allies 4324 | -5/Factory | Evolved 2 slots: Propulsion x1, Utility x1 4524 | -5/Factory | Lost 3 allies 4723 | -5/Factory | Identified exit to Upper Caves 4743 | -5/Factory | Build established: Bothacker-Skirmisher 4755 | -5/Factory | Discovered new exit (range 9) 4763 | -5/Factory | Identified exit to Factory 5012 | -5/Factory | Self-destructed Last Messages --------------- 05006_ Knocked back. 05006_ Remote Datajack destroyed. 05006_ Com. Wheel melted. 05006_ R-10 Processor destroyed. 05006_ Cld. Plasma Cannon destroyed. 05006_ Knocked back. 05006_ K-01 Serf collects debris. 05007_ Acquired 10 matter. 05008_ Relay Coupler [Sentry] severed. 05008_ Penetrated by Slug. 05008_ Neutrino Core destroyed. 05009_ K-01 Serf collects debris. 05009_ Dropped Lrg. Storage Unit. 05010_ Acquired 43 matter. 05010_ Biometal Leg destroyed. 05010_ Critical hit (Blast). 05010_ Knocked back. 05011_ Acquired 7 matter. 05011_ K-01 Serf collects debris. 05012_ Relay Coupler [Heavy] severed. Map ----- +----------------------------------------------------+ | ?????????????????????????# #???####+### | | ?????????????????????????# #???# | | ?????????????????????????# "" #???# | | ?????????????????????????# "" ##??# | | ?????????????????????????# "" #??# | | ?????????????????????????# " "" #???# | | "?""""???????????????????# #???# | | "?""""?????????##??#############+########## | | "?""""???????? ? | | "?""""???????? ? | | "?""""????????? | | "?""""????????? | | "?""""?????????? | | ?????????????####+########### h################ | | ?????????????# # h #??????????????# | | ?????????????# """ """ """ # #??????????????# | | ?????????????# """ """ """ + +??"?"?"?"?"???# | | ?????????????# """ """ """ # #??"?"?"?"?"???# | | ?????????????# # #??"?"?"?"?"???# | | ??????"""????# ! # = #??"?"?"?"?"???# | | ??????"""????########### ##;% !* #??"?"?"?"?"???# | | ??????"""????# #????# %H ##! = #??"?"?"?"?"???# | | ?????????????# #???##]]!| |!=%= #??"?"?"?"?"???# | | ??????"""????###???#]!c ==%%[! #??"?"?"?"?"???# | | ??????"""??????????##]* ==!%[= #??"?"?"?"?"???# | | ??????"""???????????# c@=|!*!= #??????????????# | | ????????????? !=kk! ;#?????????????# | | ??????"""???# """"" # *#########?????????????# | | ??????"""????? """"" # |%#?????????????????????? | | ??????"""??????""" # k!=% ?""""???????????????? | | ??????????????? + !%+ """"???????????????? | | ???????????????""""" # k ; """"???????????????? | | ??????""Y""????""""" # # """"???????????????? | | ??????"""""????"""? #k # """"???????????????? | | ??????????????????? # #? """"???????????????? | | ???????????????????#?# ;? """"???????????????? | | ????????????????????? #?? ?????????????????? | | ???????? ??? ??????? #???#?????????????????? | | ???????? ?? ??? ??? ?????????????????????? | | ???????? ?? ??? ??? #?????????????????????? | | ???????# """ """ """ ??????????????????????? | | ######## """ """ """ #?????????????????????????? | | """ """ """ #????????????#+#??????????? | | #????????????# #??????????? | | """ """ """ #????????????# #??????????? | | """ """ """ #????????????# #??????????? | | ?? """ """ """ #????????????# #????####### | | #### #????????????# #????# | | # """ """ """ #???????????## ###### | | !# """ """ """ #???????????# | +----------------------------------------------------+ Best States ------------- Heat Dissipation 68 Energy Generation 19 Energy Capacity 315 Matter Stores 300 Matter Capacity 300 Sight Range 18 Robot Scan Range 15 Terrain Scan Density 10 Armor Coverage 375 Evasion (%) 70 Targeting Accuracy 5 Recoil Reduction 2 Defensive Hacking 10 Relay Coupler Types 2 Relay Coupler Value 40 Item Schematics ----------------- None Robot Schematics ------------------ None Fabricated ------------ Nothing Repaired ---------- Nothing Alien Tech Used ----------------- None Achievements -------------- Ambidextrous Challenges ------------ None Game ------ Seed DirectedStrikeMatter Manual? 0 Play Time 01:13:00 Cumulative 203.3 hours Start 2025.05.22 @ 15:26:54 End 2025.05.22 @ 17:04:19 Sessions 2 Manual Loads 0 Difficulty Rogue Special Mode None Game No. 197 Rogue 197 Adventurer 0 Explorer 0 Win Type - Total 1 Types 1/0/0/0/0/0/0/0/0/0 Lore% 70 Gallery% 56 Achievement% 48 Wizard Run 0 Options --------- Layout 1 ASCII 0 Keyboard 0 Movement Mouse Keybinds 0 Fullscreen 1 Font 24/Smallcaps Map View 50x35 Zoom Use 0% Tactical HUD 1 Map Filters NONE Filters NONE Steam 1 RUN: 0f6e29f5-2884-4a2b-b81b-99de74386712